Cogmind - Beta 11.1 @@@ ROGUE MODE // 2022.07.11 @ 19:18:38 Player: Sigil Result: Self-destructed Performance ------------- Evolutions (1) 500 Regions Visited (3) 600 Robots Destroyed (8) 40 Value Destroyed (82) 82 Prototype IDs (1) 20 Alien Tech Used (0) 0 Bonus (0) 0 TOTAL SCORE: 1242 Bonus ------- None Cogmind --------- Core Integrity 61/400 Matter 286/300 Energy 100/100 System Corruption 0% Temperature Cool (0) Movement Core (50) Location -9/Materials Parts ------- > --- POWER (1) -------- (None) > --- PROPULSION (2) --- (None) > --- UTILITY (4) ------ Visual Processing Unit Sensor Array > --- WEAPON (2) ------- (None) > --- INVENTORY (5) ---- Small Storage Unit Improved Terrain Scanner Seismic Detector Sensor Drone Bay (19/20) Peak State ------------ > --- POWER ------------ Light Ion Engine > --- PROPULSION ------- Flight Unit > --- UTILITY ---------- Visual Processing Unit Sensor Drone Bay > --- WEAPON ----------- Medium Laser Small Laser > --- INVENTORY -------- Small Storage Unit Sensor Array Improved Terrain Scanner Seismic Detector [Rating: 14] Favorites ----------- Power Light Ion Engine Engine Light Ion Engine Propulsion Flight Unit Treads Light Treads Flight Unit Flight Unit Utility Visual Processing Unit Device Sensor Array Processor Visual Processing Unit Weapon Light Assault Rifle Energy Gun Small Laser Ballistic Gun Light Assault Rifle Build | -11 -10 -10 -9 ------- Run | Scr Mat Min Mat Slots Evolved 2 | . . . 2 Power . | . . . . Propulsion . | . . . . Utility 2 | . . . 2 Weapon . | . . . . Parts Attached 17 | 5 4 8 . Power 3 | 1 . 2 . Engine 3 | 1 . 2 . Core . | . . . . Reactor . | . . . . Propulsion 6 | 2 2 2 . Treads 2 | 2 . . . Leg . | . . . . Wheel . | . . . . Hover . | . . . . Flight 4 | . 2 2 . Utility 4 | . 2 2 . Device 3 | . 1 2 . Storage . | . . . . Processor 1 | . 1 . . Hackware . | . . . . Protection . | . . . . Artifact . | . . . . Weapon 4 | 2 . 2 . Energy Gun 2 | 1 . 1 . Energy Cannon . | . . . . Ballistic Gun 2 | 1 . 1 . Ballistic Cannon . | . . . . Launcher . | . . . . Special Weapon . | . . . . Impact Weapon . | . . . . Slashing Weapon . | . . . . Piercing Weapon . | . . . . Special Melee Weapon . | . . . . Unidentified Prototypes 1 | . . 1 . Parts Lost 5 | . . . 5 Power 1 | . . . 1 Propulsion 2 | . . . 2 Utility . | . . . . Weapon 2 | . . . 2 Highest Loss Streak 5 | . . . 5 To Critical Strikes . | . . . . Average Slot Usage (%) 67 | . 54 77 64 Engine 4 | . . 4 7 Treads 3 | . 16 . . Flight 15 | . 8 19 15 Device 10 | . 1 14 11 Processor 10 | . 1 14 11 Energy Gun 14 | . 14 20 10 Ballistic Gun 7 | . 11 4 8 Naked Turns . | . . . . Heaviest Build 6 | 3 3 6 6 Greatest Support 20 | 20 4 8 8 Greatest Overweight (x) 1 | . . . 1 Average Overweight (x) . | . . . . Largest Inventory Capacity 5 | 5 5 5 5 Average Capacity 5 | 5 5 5 5 Most Carried 5 | 5 5 5 4 Average Carried 4 | 3 5 4 4 Final Capacity 5 | 5 5 5 5 Final Carried 5 | 5 5 4 4 Class Distribution -------------------- 61% | Mutant 38% | Scavenger-Mutant Dominant Class ---------------- Mutant | -10/Materials Mutant | -10/Mines Scavenger-Mutant | -9/Materials Resources | -11 -10 -10 -9 ----------- Run | Scr Mat Min Mat Matter Collected 342 | 262 23 57 . Remotely . | . . . . Salvage Created 210 | 125 36 49 . Parts 21 | 8 6 7 . Haulers Intercepted . | . . . . Recyclers Shooed . | . . . . Parts Field Recycled . | . . . . Retrieved Matter . | . . . . Parts Self-Destructed . | . . . . Prevented . | . . . . Kills | -11 -10 -10 -9 ------- Run | Scr Mat Min Mat Combat Hostiles Destroyed 3 | . . 3 . Guns 3 | . . 3 . Classes Destroyed 5 | 2 2 1 . Tunneler 2 | 2 . . . Recycler 1 | 1 . . . Operator 1 | . 1 . . Watcher 1 | . 1 . . Swarmer 3 | . . 3 . Best Kill Streak 3 | 2 1 3 . Combat Bots Only 3 | . . 3 . Max Kills in Single Turn 1 | 1 1 1 . Gunslinging . | . . . . Exploded . | . . . . Melee . | . . . . Uniques/NPCs Destroyed . | . . . . Combat | -11 -10 -10 -9 -------- Run | Scr Mat Min Mat Damage Taken 676 | . 69 16 591 Core 363 | . 14 10 339 Absorbed by Shields . | . . . . Core Remaining (%) 95 | 100 . 90 . Volleys Fired 26 | 12 6 3 5 Largest 2 | 2 2 2 2 Hottest 90 | 70 70 90 60 Shots Fired 47 | 24 9 4 10 Gun 47 | 24 9 4 10 Cannon . | . . . . Launcher . | . . . . Special . | . . . . Kinetic 20 | 12 3 . 5 Thermal 27 | 12 6 4 5 Explosive . | . . . . Electromagnetic . | . . . . Robot Hit Streak 5 | 2 3 4 5 Robot Miss Streak 3 | 3 3 . 2 Penetration Max . | . . . . Secondary Targets . | . . . . Shots Hit Robots 23 | 11 4 3 5 Core Hits 12 | 6 3 3 . Critical Kills . | . . . . Critical Parts Destroyed . | . . . . Critical Strikes 1 | . 1 . . Burn 1 | . 1 . . Melee Attacks . | . . . . Impact . | . . . . Slashing . | . . . . Piercing . | . . . . Sneak Attacks . | . . . . Combat Hostiles . | . . . . Follow-up Attacks . | . . . . Damage Inflicted 268 | 113 41 38 76 Guns 240 | 113 41 38 48 Cannons . | . . . . Explosions . | . . . . Melee . | . . . . Ramming 28 | . . . 28 Kinetic 67 | 39 16 . 12 Thermal 173 | 74 25 38 36 Explosive . | . . . . Electromagnetic . | . . . . Impact . | . . . . Slashing . | . . . . Piercing . | . . . . Highest Corruption . | . . . . Average Corruption . | . . . . Corruption Purged . | . . . . Corruption Blocked . | . . . . Overload Shots . | . . . . Overflow Damage . | . . . . Projectiles . | . . . . Explosions . | . . . . Melee . | . . . . Knockbacks . | . . . . Impact . | . . . . Kinetic . | . . . . Secondary . | . . . . Self-Inflicted Damage 14 | . . . 14 Shots . | . . . . Rammed 3 | . . . 3 Targets Rammed 3 | . . . 3 Kicked . | . . . . Crushed . | . . . . Highest Temperature 40 | 40 20 20 28 Average Temperature 14 | 18 10 11 13 Received Heat Transfer 207 | . 39 . 168 Siege Activations . | . . . . Robots Corrupted . | . . . . Combat Hostiles . | . . . . Parts Fried . | . . . . Impact Corruptions . | . . . . Robots Melted . | . . . . Combat Hostiles . | . . . . Parts Melted . | . . . . Heat Transferred 556 | 222 148 111 75 Parts Sabotaged . | . . . . Parts Stolen . | . . . . Parts Stripped . | . . . . Power Chain Reactions . | . . . . Missiles Intercepted . | . . . . Alert | -11 -10 -10 -9 ------- Run | Scr Mat Min Mat Peak Influence 185 | 15 55 81 185 Initial 31 | . 9 21 31 Average 51 | 6 40 46 83 Maximum Alert Level . | . . . . Low Security (%) 100 | 100 100 100 100 Level 1 . | . . . . Level 2 . | . . . . Level 3 . | . . . . Level 4 . | . . . . Level 5 . | . . . . High Security . | . . . . Max Security . | . . . . Squads Dispatched 4 | . 1 . 3 Investigation 1 | . . . 1 Extermination . | . . . . Reinforcement 3 | . 1 . 2 Assault . | . . . . Garrison . | . . . . Intercept . | . . . . Searches Triggered . | . . . . Construction Impeded . | . . . . Haulers Reinforced . | . . . . Active Scanning Responses . | . . . . Cargo Convoy Interrupts . | . . . . Stealth | -11 -10 -10 -9 --------- Run | Scr Mat Min Mat Distress Signals 4 | . . . 4 Communications Jammed . | . . . . Distress Signals . | . . . . Times Spotted 43 | . 8 3 32 Peak Tracking Total 17 | . 7 3 17 Tactical Retreats 4 | . . . 4 Traps | -11 -10 -10 -9 ------- Run | Scr Mat Min Mat Traps Triggered 1 | . 1 . . Indirectly . | . . . . Trap Hack Attempts . | . . . . Triggered . | . . . . Disarmed . | . . . . Reprogrammed . | . . . . Reused . | . . . . Traps Extracted . | . . . . Installed . | . . . . Triggered . | . . . . Machines | -11 -10 -10 -9 ---------- Run | Scr Mat Min Mat Machines Disabled . | . . . . Max in Single Turn . | . . . . Machines Sabotaged . | . . . . Garrisons Compromised . | . . . . Overloaded Fab Kills . | . . . . Hacking | -11 -10 -10 -9 --------- Run | Scr Mat Min Mat Machines Accessed 9 | . 3 1 5 Terminals 8 | . 3 . 5 Fabricators . | . . . . Repair Stations . | . . . . Recycling Units . | . . . . Scanalyzers . | . . . . Garrison Access . | . . . . Total Hacks 22 | . 9 1 12 Successful 5 | . 2 1 2 Failed 17 | . 7 . 10 Catastrophic 7 | . 2 . 5 Database Lockouts . | . . . . Manual 20 | . 8 . 12 Terminals 21 | . 9 . 12 Fabricators . | . . . . Repair Stations . | . . . . Recycling Units . | . . . . Scanalyzers . | . . . . Garrison Access . | . . . . Terminal Hacks 3 | . 1 1 1 Open Door 1 | . . 1 . Terminal Index 1 | . 1 . . Unreport Threat 1 | . . . 1 Fabricator Hacks . | . . . . Repair Station Hacks . | . . . . Recycling Unit Hacks . | . . . . Scanalyzer . | . . . . Garrison Access Hacks . | . . . . Unauthorized Hacks 2 | . 1 . 1 Terminals 2 | . 1 . 1 Assimilate 1 | . . . 1 Botnet 1 | . 1 . . Fabricators . | . . . . Repair Stations . | . . . . Recycling Units . | . . . . Scanalyzers . | . . . . Garrison Access . | . . . . Data Cores Recovered . | . . . . Used . | . . . . Hacking Detections 8 | . 3 . 5 Full Trace Events 1 | . . . 1 Feedback Events . | . . . . Feedback Blocked . | . . . . Robot Schematics Acquired . | . . . . Robots Built . | . . . . Authchips . | . . . . Time . | . . . . Total Robot Build Rating . | . . . . Part Schematics Acquired . | . . . . Parts Built . | . . . . Authchips . | . . . . Time . | . . . . Total Part Build Rating . | . . . . Parts Repaired . | . . . . Time . | . . . . Parts Recycled . | . . . . Recycled Matter . | . . . . Retrieved Matter . | . . . . Retrieved Components . | . . . . Parts Scanalyzed . | . . . . Part Schematics Acquired . | . . . . Parts Damaged . | . . . . Bothacking | -11 -10 -10 -9 ------------ Run | Scr Mat Min Mat Used RIF Installer . | . . . . Robots Hacked . | . . . . Non-combat . | . . . . Combat . | . . . . Robot Hacks Applied . | . . . . Relay Couplers Released . | . . . . Fabnet Peak Effective % . | . . . . Robots Rewired . | . . . . Allies Hacked . | . . . . Hacks Repelled . | . . . . Allies | -11 -10 -10 -9 -------- Run | Scr Mat Min Mat Total Allies 1 | . . . 1 Largest Group 1 | . . . 1 Highest-Rated Group 10 | . . . 10 Highest-Rated Ally 10 | . . . 10 Total Orders 1 | . . 1 . EXPLORE 1 | . . 1 . Ally Attacks . | . . . . Total Damage . | . . . . Kills . | . . . . Allies Corrupted . | . . . . Allies Melted . | . . . . Intel | -11 -10 -10 -9 ------- Run | Scr Mat Min Mat Robot Analysis Total . | . . . . Derelict Logs Recovered 1 | . . 1 . Drone Launches 1 | . . 1 . Drone Recoveries . | . . . . Exploration | -11 -10 -10 -9 ------------- Run | Scr Mat Min Mat Turns Passed 674 | 115 110 217 232 Spaces Moved 994 | 128 140 292 434 Core 269 | 125 58 . 86 Treads 3 | 3 . . . Legs . | . . . . Wheels . | . . . . Hover . | . . . . Flight 722 | . 82 292 348 Fastest Speed 37 | 50 40 37 37 Average Speed 43 | 52 51 38 40 Slowest Speed 160 | 160 60 40 120 Overloaded Moves . | . . . . Propulsion Burnouts . | . . . . Robots Hopped 22 | . 2 3 17 Cave-ins Triggered . | . . . . Exploration Rate (%) 41 | 4 28 79 56 Regions Visited 3 Branch Regions 1 Pre-discovered Areas . | . . . . Known Exits Taken 1 | . . 1 . Unknown Exits Taken 2 | 1 1 . . Scrap Searched . | . . . . Spaces Dug . | . . . . Terrain Destroyed . | . . . . Melee . | . . . . Projectile . | . . . . AOE . | . . . . Terrain Rammed . | . . . . Walls Destroyed . | . . . . Machines Disabled . | . . . . Actions | -11 -10 -10 -9 --------- Run | Scr Mat Min Mat Total 1171 | 152 165 390 464 Wait 143 | 2 16 86 39 Move 950 | 127 135 285 403 Hop 19 | . 2 3 14 Pick Up 5 | 5 . . . Fast Attach 11 | 4 4 3 . Attach 5 | 1 . 4 . Detach 4 | 1 . 3 . Swap 1 | . . 1 . Drop 4 | . 2 2 . Fire 26 | 12 6 3 5 Melee . | . . . . Ram 3 | . . . 3 Kick . | . . . . Crush . | . . . . Escape Stasis . | . . . . Rewire . | . . . . Trap . | . . . . Miscellaneous . | . . . . Route ------- -11/Scrapyard -10/Materials -10/Mines (discovered 2 exits: *Mat x2) -9/Materials History --------- Turn | Location | Event 9 | -11/Scrapyard | Discovered new exit (range 15) 116 | -11/Scrapyard | Entered Materials 224 | -10/Materials | Discovered new exit (range 6) 226 | -10/Materials | Entered Mines 237 | -10/Mines | Identified exit to Materials 270 | -10/Mines | Found the Drone Emporium 273 | -10/Mines | Found Prototype Device 273 | -10/Mines | Identified Sensor Drone Bay 313 | -10/Mines | Build established: Mutant 392 | -10/Mines | Discovered exit to Materials (range 5) 443 | -10/Mines | Entered Materials 443 | -9/Materials | Evolved 2 slots: Utility x2 657 | -9/Materials | Core integrity fell below 50% 675 | -9/Materials | Core integrity fell below 20% 675 | -9/Materials | Self-destructed Last Messages --------------- Investigation squad. 00570_ K-01 Serf collects debris. 00595_ W-16 Scout sends out distress signal. 00599_ Flight Unit destroyed. 00606_ Lgt. Ion Engine destroyed. 00614_ Connecting with Terminal... >>Alert(Purge) Purged threat record, alert level lowered. 00627_ Connecting with Terminal... 00628_ Lgt. Assault Rifle destroyed. 00629_ Flight Unit destroyed. 00632_ K-01 Serf collects debris. 00634_ Slammed into W-16 Scout. 00654_ Sml. Laser destroyed. 00668_ ALERT: Hostiles spotted, dispatching reinforcements to Terminal M002. 00672_ S-10 Pest destroyed. 00672_ Critical hit (Burn: +37). 00674_ Slammed into S-10 Pest. 00675_ S-10 Pest destroyed. Map ----- +----------------------------------------------------+ | | | | | | | | | | | | | | | | | | | | | | | | | | | | | | | | | | | | | | | ??????????????????????????????????????? | | ????????????????#######???????????????? | | ????????????????# T #######????????? | | ????????????????# o #????????? | | ????????????????# """# #????????? | | ????????????????#! """#[ ########????? | | ????????????????# ""?#%@# ! #????? | | ????????????????# ?+*s/ #????? | | ?????????????########### # #????? | | ?????????????# ## # #????? | | ?????????????# "" ##s # #????? | | ##+########### Y" ##s # #????? | | # "" ##= ##########??? | | / ##%*#?? ?? | | ^ # """ ## ##? ??? | | ##+###### ## """ # # """ ""???? | | # ???# ## """ / Y # """ """??? | | # "" #?# ## = # + """ """??? | | # ""S #?# ########### # #? | | # "" #?# #?????????###### #? | | # #?# #???????????????? ! #? | | # #?# #????????????????#########? | | # #?# #?????????????????????????? | | #######?# #?????????????????????????? | | ????????# #?????????????????????????? | | ????????# #?????????????????????????? | | ????????# +?????????????????????????? | | ????????# #?????????????????????????? | | ????????# #?????????????????????????? | | ????????# #?????????????????????????? | | #??????? ?????????????????????????? | +----------------------------------------------------+ Best States ------------- Heat Dissipation 28 Energy Generation 10 Energy Capacity 125 Matter Stores 300 Matter Capacity 300 Sight Range 18 Robot Scan Range 14 Terrain Scan Density 10 Evasion (%) 62 Recoil Reduction 1 Item Schematics ----------------- None Robot Schematics ------------------ None Fabricated ------------ Nothing Alien Tech Used ----------------- None Achievements -------------- None Challenges ------------ None Game ------ Seed BottomlessBombFlail Manual? 0 Play Time 00:17:32 Cumulative 57.5 hours Start 2022.07.11 @ 19:05:40 End 2022.07.11 @ 19:18:38 Sessions 1 Manual Loads 0 Difficulty Rogue Special Mode None Game No. 46 Rogue 46 Adventurer 0 Explorer 0 Win Type - Total 0 Types 0/0/0/0/0/0/0/0/0 Lore% 43 Gallery% 51 Achievement% 47 Wizard Run 0 Options --------- ASCII 0 Keyboard 0 Movement Numpad Keybinds 0 Fullscreen 1 Font 36/Smallcaps Map View 76x50 Tactical HUD 1 Map Filters NONE Filters NONE Steam 1 RUN: 054a147e-5303-4efc-9662-2c2a0afc3917